fUSD/lending_fUSD_20250902
["ID","MTS","AMOUNT","RATE_DAILY","PERIOD"]
[382926745,1756771515246,1086.0,0.00038043,30]
[382926746,1756771518916,1086.0,0.00038043,30]
[382926747,1756771522816,1086.0,0.00038044,30]
[382926748,1756771526561,1086.0,0.00038044,30]
[382926749,1756771531469,1086.0,0.00038044,30]
[382926750,1756771534302,154.09,0.00013699,2]
[382926751,1756771534673,1086.0,0.00038044,30]
[382926752,1756771538488,1086.0,0.00038044,30]
[382926754,1756771542251,1105.78546365,0.00038044,30]
[382926758,1756771661335,154.08,0.00016173,2]
[382926759,1756771661399,154.08,0.00017417,2]
[382926773,1756771832214,-154.08,0.00018662,2]
[382926774,1756771832223,-154.08,0.00019906,2]
[382926775,1756771832233,-355.0,0.0002,2]
[382926776,1756771832245,-308.43151052,0.00020093,2]
[382926777,1756771832255,-250.0,0.00020528,2]
[382926778,1756771832266,-154.08,0.0002115,2]
[382926779,1756771832275,-348.0,0.0002118,2]
[382926780,1756771832285,-167.05028667,0.0002237,2]
[382926781,1756771832464,-515.94971333,0.0002237,2]
[382926782,1756771832473,-6.09819656,0.00022394,2]
[382926783,1756771832485,-147.98180344,0.00022394,2]
[382926784,1756771832495,-154.09,0.00022505,2]
[382926785,1756771832504,-211.31348276,0.0002355,2]
[382926786,1756771832516,-331.49609331,0.0002355,2]
[382926787,1756771832527,-126.19042393,0.0002355,2]
[382926788,1756771832536,-154.08,0.00023638,2]
[382926789,1756771832546,-3000.0,0.00024442,2]
[382926790,1756771832555,-654.0,0.0002473,2]
[382926791,1756771832564,-154.08,0.00024882,2]
[382926792,1756771832574,-616.86302103,0.0002533,7]
[382926793,1756771832583,-1200.0,0.0002581,2]
[382926794,1756771832593,-3111.0,0.00025811,2]
[382926795,1756771832602,-640.0,0.0002592,2]
[382926796,1756771832612,-2000.01,0.00026,2]
[382926797,1756771832621,-154.08,0.00026126,2]
[382926798,1756771832631,-163.72,0.00026141,2]
[382926799,1756771832642,-626.0,0.000271,2]
[382926800,1756771832651,-3226.107,0.0002718,2]
[382926801,1756771832662,-154.08,0.0002737,2]
[382926802,1756771832672,-222.00873236,0.00027899,2]
[382926803,1756771832681,-612.0,0.0002829,2]
[382926804,1756771832691,-154.08,0.00028614,2]
[382926805,1756771832701,-214.77636274,0.00029469,2]
[382926806,1756771832710,-597.0,0.0002947,2]
[382926807,1756771832722,-154.08,0.00029859,2]
[382926808,1756771832732,-583.0,0.0003065,2]
[382926809,1756771832745,-154.08,0.00031103,2]
[382926810,1756771832755,-154.09,0.00031311,2]
[382926811,1756771832766,-569.0,0.0003184,2]
[382926812,1756771832775,-666.0,0.00032347,3]
[382926813,1756771832784,-154.08,0.00032347,2]
[382926814,1756771832794,-160.0,0.00032567,7]
[382926815,1756771832803,-1428.4,0.0003261,2]
[382926816,1756771832812,-158.89,0.00032712,2]
[382926817,1756771832821,-555.0,0.0003302,2]
[382926818,1756771832831,-150.99,0.00033844,2]
[382926819,1756771832840,-5092.39796024,0.00033844,2]
[382926823,1756771838177,-1387.61904592,0.00033844,2]
[382926824,1756771838235,-1341.43884699,0.00033844,2]
[382926876,1756771840152,-711.65051713,0.00033844,2]
[382926877,1756771840163,-304.09852287,0.00033844,2]
[382926878,1756771840401,-348.43815355,0.00033844,2]
[382926879,1756771840498,-814.3469533,0.00033844,2]
[382926880,1756771840507,-193.1444227,0.00033844,2]
[382926883,1756771843279,-1130.34104049,0.00033844,2]
[382926884,1756771843291,-1133.46453681,0.00033844,2]
[382926885,1756771843301,-481.97323566,0.000342,2]
[382926887,1756771846754,-59.02676434,0.000342,2]
[382926888,1756771846764,-150.0,0.00034225,7]
[382926889,1756771846774,-150.0,0.00034225,7]
[382926890,1756771846785,-150.0,0.00034225,7]
[382926891,1756771846795,-150.0,0.00034225,7]
[382926892,1756771846803,-150.0,0.00034225,7]
[382926893,1756771846812,-150.0,0.00034225,7]
[382926894,1756771846822,-150.0,0.00034225,7]
[382926895,1756771846831,-150.0,0.00034225,7]
[382926896,1756771846840,-150.0,0.00034225,7]
[382926897,1756771846849,-278.37753341,0.00034225,7]
[382926898,1756771846859,-150.0,0.00034225,7]
[382926899,1756771846868,-150.0,0.00034225,7]
[382926900,1756771846877,-150.0,0.00034225,7]
[382926901,1756771846886,-1428.4,0.00034241,2]
[382926902,1756771846895,-500.0,0.00034329,2]
[382926903,1756771846904,-150.0,0.00034605,7]
[382926904,1756771846913,-638.0,0.00034707,120]
[382926905,1756771846922,-638.0,0.00034897,2]
[382926906,1756771846932,-150.0,0.00034985,7]
[382926907,1756771846942,-17526.73425567,0.00035,120]
[382926908,1756771846953,-738.94,0.00035,120]
[382926909,1756771847009,-1616.33591318,0.00035,120]
[382926910,1756771847020,-603.7714745,0.00035,120]
[382926911,1756771847029,-529.07139329,0.00035004,7]
[382926912,1756771847049,-108.92860671,0.00035004,7]
[382926913,1756771847058,-528.0,0.00035044,2]
[382926914,1756771847067,-90.50037601,0.0003514,2]
[382926915,1756771847079,-159.49962399,0.0003514,2]
[382926916,1756771847087,-142.50037601,0.0003514,41]
[382926917,1756771847126,-34.94662399,0.0003514,41]
[382926918,1756771847136,-396.93837601,0.00035168,2]
[382926919,1756771847147,-560.06162399,0.00035168,2]
[382926920,1756771847156,-150.0,0.00035175,7]
[382926921,1756771847166,-150.0,0.00035175,7]
[382926922,1756771847175,-89.58837601,0.00035359,2]
[382927014,1756772228620,1282.9644348,0.00038044,30]
[382927024,1756772404726,2500.0,0.00029238,120]
[382927025,1756772462650,167.0,0.00038044,120]
[382927031,1756772578458,400.0,0.00038044,30]
[382927033,1756772624753,154.59,0.00013699,2]
[382927036,1756772710964,652.7646096,0.000154,2]
[382927037,1756772733008,197.0,0.00038044,120]
[382927042,1756772825561,939.53,0.00016627,2]
[382927043,1756772825862,747.79374058,0.00017502,2]
[382927044,1756772825885,191.73625942,0.00017502,2]
[382927049,1756772977060,-150.34345391,0.00017999,2]
[382927050,1756772977085,-14849.65654609,0.00018,2]
[382927051,1756772977880,-15000.0,0.00018,2]
[382927052,1756772978309,-15000.0,0.00018,2]
[382927053,1756772978932,-15000.0,0.00018,2]
[382927054,1756772979164,-13004.99009155,0.00018,2]
[382927055,1756772979188,-1995.00990845,0.00018,2]
[382927056,1756772979698,-15000.0,0.00018,2]
[382927057,1756772980256,-4604.99009155,0.00018,2]
[382927058,1756772980280,-10395.00990845,0.00018,2]
[382927059,1756772980976,-15000.0,0.00018,2]
[382927060,1756772981772,-15000.0,0.00018,2]
[382927062,1756773010236,-539.91,0.0001799,2]
[382927063,1756773010260,-539.91,0.0001799,2]
[382927064,1756773010282,-1200.0,0.00017999,2]
[382927065,1756773010304,-12720.18,0.00018,2]
[382927066,1756773010710,-15000.0,0.00018,2]
[382927067,1756773011203,-15000.0,0.00018,2]
[382927068,1756773011699,-15000.0,0.00018,2]
[382927077,1756773038182,-619.484349,0.0001791,2]
[382927078,1756773038192,-500.0,0.00017999,2]
[382927079,1756773038201,-230.79244478,0.00017999,2]
[382927080,1756773038210,-568.22491005,0.00017999,2]
[382927081,1756773038220,-222716.94501702,0.00018,2]
[382927082,1756773038229,-562.20269626,0.00018077,2]
[382927083,1756773038239,-167.57130258,0.00018177,2]
[382927084,1756773038248,-779.89477612,0.00018277,2]
[382927085,1756773038257,-939.53,0.00018377,2]
[382927086,1756773038272,-500.0,0.00019133,2]
[382927087,1756773038280,-500.0,0.00019133,2]
[382927088,1756773038290,-500.0,0.00019133,2]
[382927089,1756773038299,-939.53,0.00019252,2]
[382927090,1756773038308,-1000.0,0.00019681,2]
[382927091,1756773038318,-1003.42014745,0.00019681,2]
[382927092,1756773038327,-1680.0,0.00019735,2]
[382927093,1756773038336,-161.25,0.0002,2]
[382927094,1756773038346,-939.53,0.00020127,2]
[382927095,1756773038355,-1500.0,0.00020229,2]
[382927096,1756773038365,-779.89477607,0.00020436,2]
[382927097,1756773038375,-167.57130252,0.00020755,2]
[382927098,1756773038384,-652.47127213,0.00020777,2]
[382927099,1756773038394,-562.20269621,0.00020915,2]
[382927100,1756773038403,-939.53,0.00021002,2]
[382927101,1756773038413,-2351.0,0.00021639,2]
[382927102,1756773038422,-939.53,0.00021877,2]
[382927103,1756773038431,-779.89477607,0.00022595,2]
[382927104,1756773038441,-939.53,0.00022752,2]
[382927105,1756773038450,-154.59,0.00023182,2]
[382927106,1756773038459,-167.57130252,0.00023334,2]
[382927107,1756773038468,-939.53,0.00023628,2]
[382927108,1756773038478,-1377.0,0.00023727,2]
[382927109,1756773038489,-562.20269621,0.00023753,2]
[382927110,1756773038499,-939.53,0.00024503,2]
[382927111,1756773038512,-779.89477607,0.00024754,2]
[382927112,1756773038521,-56445.6155899,0.000248,2]
[382927113,1756773038531,-200.0,0.00025192,2]
[382927114,1756773038542,-246.74520841,0.00025199,7]
[382927115,1756773038553,-430.85155379,0.000252,2]
[382927116,1756773038562,-150.0,0.00025295,2]
[382927117,1756773038571,-939.53,0.00025378,2]
[382927118,1756773038582,-167.57130252,0.00025912,2]
[382927119,1756773038593,-173.63,0.00026107,2]
[382927120,1756773038602,-939.53,0.00026253,2]
[382927121,1756773038612,-2965.58,0.00026462,2]
[382927122,1756773038622,-289.0,0.0002658,2]
[382927123,1756773038631,-562.20269621,0.00026591,2]
[382927124,1756773038640,-779.89477607,0.00026913,2]
[382927125,1756773038649,-939.53,0.00027128,2]
[382927126,1756773038659,-173.03,0.00027257,2]
[382927127,1756773038668,-289.0,0.0002729,2]
[382927128,1756773038678,-500.0,0.00027397,2]
[382927129,1756773038687,-500.0,0.00027397,2]
[382927130,1756773038697,-500.0,0.00027397,2]
[382927131,1756773038708,-500.0,0.00027397,2]
[382927132,1756773038717,-500.0,0.00027397,2]
[382927133,1756773038727,-500.0,0.00027397,2]
[382927134,1756773038736,-161.44169741,0.00027397,2]
[382927135,1756773038746,-199.69,0.00027425,30]
[382927136,1756773038755,-289.0,0.0002799,2]
[382927137,1756773038766,-939.53,0.00028003,2]
[382927138,1756773038776,-167.57130252,0.00028491,2]
[382927139,1756773038785,-289.0,0.000287,2]
[382927140,1756773038795,-939.53,0.00028878,2]
[382927141,1756773038804,-1876.58584325,0.00029,2]
[382927142,1756773038813,-779.89477607,0.00029072,2]
[382927143,1756773038823,-289.0,0.0002941,2]
[382927144,1756773038831,-562.20269621,0.0002943,2]
[382927145,1756773038840,-2202.17954146,0.00029735,2]
[382927146,1756773038853,-939.53,0.00029753,2]
[382927147,1756773038863,-160.0,0.000298,2]
[382927148,1756773038873,-3239.3,0.00029819,2]
[382927149,1756773038882,-1200.0,0.0003,2]
[382927150,1756773038891,-1777.81352016,0.0003,2]
[382927151,1756773038900,-11427.94932461,0.0003,30]
[382927152,1756773038911,-980.40516425,0.0003,2]
[382927153,1756773038920,-600.64009464,0.0003,2]
[382927154,1756773038930,-514.29699458,0.0003,30]
[382927155,1756773038939,-212.45053244,0.0003,30]
[382927156,1756773038949,-289.0,0.0003011,2]
[382927157,1756773038959,-197.41174488,0.0003013,2]
[382927158,1756773038968,-50469.39294725,0.0003013,2]
[382927159,1756773038977,-201.09915084,0.0003013,2]
[382927160,1756773038987,-7570.29764588,0.0003013,2]
[382927161,1756773038995,-153.0,0.00030135,2]
[382927162,1756773039005,-153.0,0.00030135,2]
[382927163,1756773039016,-153.0,0.00030135,2]
[382927164,1756773039026,-153.0,0.00030135,2]
[382927165,1756773039035,-153.0,0.00030135,2]
[382927166,1756773039044,-153.0,0.00030135,2]
[382927167,1756773039053,-153.0,0.00030135,2]
[382927168,1756773039063,-153.0,0.00030135,2]
[382927169,1756773039071,-153.0,0.00030135,2]
[382927170,1756773039081,-153.0,0.00030135,2]
[382927171,1756773039091,-153.0,0.00030135,2]
[382927172,1756773039100,-153.0,0.00030135,2]
[382927173,1756773039110,-153.0,0.00030135,2]
[382927174,1756773039119,-153.0,0.00030135,2]
[382927175,1756773039129,-153.0,0.00030135,2]
[382927176,1756773039138,-153.0,0.00030135,2]
[382927177,1756773039148,-153.0,0.00030135,2]
[382927178,1756773039157,-153.0,0.00030135,2]
[382927179,1756773039166,-153.0,0.00030135,2]
[382927180,1756773039175,-153.0,0.00030135,2]
[382927181,1756773039185,-153.0,0.00030135,2]
[382927182,1756773039194,-153.0,0.00030135,2]
[382927183,1756773039203,-153.0,0.00030135,2]
[382927184,1756773039517,-153.0,0.00030135,2]
[382927185,1756773039527,-153.0,0.00030135,2]
[382927186,1756773039538,-153.0,0.00030135,2]
[382927187,1756773039552,-153.0,0.00030135,2]
[382927188,1756773039562,-153.0,0.00030135,2]
[382927189,1756773039571,-153.0,0.00030135,2]
[382927190,1756773039580,-153.0,0.00030135,2]
[382927191,1756773039590,-153.0,0.00030135,2]
[382927192,1756773039601,-153.0,0.00030135,2]
[382927193,1756773039611,-153.0,0.00030135,2]
[382927194,1756773039622,-153.0,0.00030135,2]
[382927195,1756773039632,-153.0,0.00030135,2]
[382927196,1756773039641,-153.0,0.00030135,2]
[382927197,1756773039651,-939.53,0.00030628,2]
[382927198,1756773039661,-289.0,0.0003082,2]
[382927199,1756773039670,-754.99999881,0.00031,2]
[382927200,1756773039680,-167.57130252,0.00031069,15]
[382927201,1756773039690,-779.89477607,0.00031231,2]
[382927202,1756773039700,-939.53,0.00031503,2]
[382927203,1756773039709,-289.0,0.0003152,2]
[382927204,1756773039719,-151.0,0.00031546,7]
[382927205,1756773039728,-15000.98,0.00031549,2]
[382927206,1756773039738,-158.46,0.00031587,2]
[382927207,1756773039747,-289.0,0.0003223,2]
[382927208,1756773039757,-562.20269621,0.00032268,2]
[382927209,1756773039770,-8063.65936998,0.00032297,2]
[382927210,1756773039779,-152.0,0.00032308,7]
[382927211,1756773039789,-152.0,0.00032308,7]
[382927212,1756773039799,-152.0,0.00032308,7]
[382927213,1756773039809,-152.0,0.00032308,7]
[382927214,1756773039818,-152.0,0.00032308,7]
[382927215,1756773039828,-152.0,0.00032308,7]
[382927216,1756773039838,-152.0,0.00032308,7]
[382927217,1756773039848,-152.0,0.00032308,7]
[382927218,1756773039858,-939.53,0.00032379,2]
[382927219,1756773039867,-132082.0,0.000324,2]
[382927220,1756773039877,-154.59,0.00032666,2]
[382927221,1756773039887,-1000.0,0.00032712,2]
[382927222,1756773039898,-4722.98018321,0.000328,2]
[382927223,1756773039908,-289.0,0.0003294,2]
[382927224,1756773039919,-500.0,0.0003295,5]
[382927225,1756773039929,-500.0,0.0003295,5]
[382927226,1756773039938,-5512.0,0.00033,3]
[382927227,1756773039948,-26725.89549151,0.00033,2]
[382927228,1756773039958,-155.37,0.00033016,30]
[382927229,1756773039968,-939.53,0.00033254,2]
[382927230,1756773039978,-779.89477607,0.0003339,2]
[382927231,1756773039988,-1000.0,0.00033498,5]
[382927232,1756773039998,-1000.0,0.00033498,5]
[382927233,1756773040008,-666.0,0.00033558,3]
[382927234,1756773040019,-5512.0,0.000336,5]
[382927235,1756773040029,-289.0,0.0003364,2]
[382927236,1756773040039,-167.57130252,0.00033647,15]
[382927237,1756773040049,-857.04,0.00033743,2]
[382927238,1756773040058,-1000.0,0.00033938,2]
[382927239,1756773040068,-3376.83513763,0.00034,3]
[382927240,1756773040078,-514.29699458,0.00034,3]
[382927241,1756773040087,-212.45053244,0.00034,3]
[382927242,1756773040097,-846.74174822,0.00034023,2]
[382927243,1756773040107,-1500.0,0.00034046,5]
[382927244,1756773040117,-1500.0,0.00034046,5]
[382927245,1756773040127,-250.0,0.00034058,2]
[382927246,1756773040136,-388.04,0.00034058,2]
[382927247,1756773040147,-160.0,0.00034058,7]
[382927249,1756773040156,-8063.65936998,0.00034215,2]
[382927251,1756773040166,-150.0,0.00034225,7]
[382927252,1756773040176,-150.0,0.00034225,7]
[382927253,1756773040186,-150.0,0.00034225,7]
[382927254,1756773040195,-150.0,0.00034225,7]
[382927255,1756773040206,-150.0,0.00034225,7]
[382927256,1756773040215,-150.0,0.00034225,7]
[382927257,1756773040224,-150.0,0.00034225,7]
[382927258,1756773040234,-253.43290215,0.00034225,7]
[382927259,1756773040243,-153.77736125,0.00034225,7]
[382927260,1756773040254,-150.0,0.00034225,7]
[382927261,1756773040265,-249.70886645,0.00034225,7]
[382927262,1756773040275,-150.0,0.00034225,7]
[382927263,1756773040284,-150.0,0.00034225,7]
[382927264,1756773040294,-289.0,0.0003435,2]
[382927265,1756773040304,-2500.0,0.00034446,2]
[382927266,1756773040314,-846.74174822,0.00034492,2]
[382927267,1756773040323,-155.37,0.00034523,30]
[382927268,1756773040333,-24190.9781099,0.00034535,2]
[382927269,1756773040343,-16127.31874,0.00034536,2]
[382927270,1756773040353,-1000.0,0.00034545,21]
[382927271,1756773040362,-1000.0,0.00034545,21]
[382927272,1756773040376,-1000.0,0.00034545,21]
[382927273,1756773040385,-1000.0,0.00034545,21]
[382927274,1756773040394,-1000.0,0.00034545,21]
[382927275,1756773040404,-1000.0,0.00034545,21]
[382927276,1756773040413,-1000.0,0.00034545,21]
[382927277,1756773040423,-1000.0,0.00034545,21]
[382927278,1756773040432,-1000.0,0.00034545,21]
[382927279,1756773040442,-1000.0,0.00034545,21]
[382927280,1756773040451,-1000.0,0.00034545,21]
[382927281,1756773040460,-1000.0,0.00034545,21]
[382927282,1756773040470,-1000.0,0.00034545,21]
[382927283,1756773040480,-1000.0,0.00034545,21]
[382927284,1756773040489,-1000.0,0.00034545,21]
[382927285,1756773040499,-1000.0,0.00034545,21]
[382927286,1756773040508,-1000.0,0.00034545,21]
[382927287,1756773040518,-1000.0,0.00034545,21]
[382927288,1756773040527,-1000.0,0.00034545,21]
[382927289,1756773040538,-1000.0,0.00034545,21]
[382927290,1756773040551,-1000.0,0.00034545,21]
[382927291,1756773040560,-1000.0,0.00034545,21]
[382927292,1756773040570,-1000.0,0.00034545,21]
[382927293,1756773040579,-1000.0,0.00034545,21]
[382927294,1756773040589,-1000.0,0.00034545,21]
[382927295,1756773040598,-1000.0,0.00034545,21]
[382927296,1756773040607,-1000.0,0.00034545,21]
[382927297,1756773040617,-1000.0,0.00034545,21]
[382927298,1756773040627,-1000.0,0.00034545,21]
[382927299,1756773040638,-1000.0,0.00034545,21]
[382927300,1756773040648,-1000.0,0.00034545,21]
[382927301,1756773040658,-1000.0,0.00034545,21]
[382927303,1756773040668,-1000.0,0.00034545,21]
[382927305,1756773040677,-1000.0,0.00034545,21]
[382927306,1756773040687,-1000.0,0.00034545,21]
[382927307,1756773040697,-1000.0,0.00034545,21]
[382927308,1756773040706,-1000.0,0.00034545,21]
[382927310,1756773040716,-1000.0,0.00034545,21]
[382927311,1756773040726,-1000.0,0.00034545,21]
[382927312,1756773040735,-1000.0,0.00034545,21]
[382927313,1756773040745,-1000.0,0.00034545,21]
[382927314,1756773040754,-1000.0,0.00034545,21]
[382927315,1756773040764,-1000.0,0.00034545,21]
[382927316,1756773040773,-1000.0,0.00034545,21]
[382927317,1756773040783,-1000.0,0.00034545,21]
[382927318,1756773040793,-1000.0,0.00034545,21]
[382927319,1756773040803,-1000.0,0.00034545,21]
[382927320,1756773040812,-1000.0,0.00034545,21]
[382927321,1756773040822,-1000.0,0.00034545,21]
[382927322,1756773040831,-1000.0,0.00034545,21]
[382927323,1756773040841,-1000.0,0.00034545,21]
[382927324,1756773040851,-1000.0,0.00034545,21]
[382927325,1756773040860,-630.0,0.00034545,21]
[382927326,1756773040870,-177.447,0.00034545,39]
[382927327,1756773040880,-12860.2311178,0.00034546,2]
[382927328,1756773040890,-5431.3755669,0.00034546,2]
[382927329,1756773040900,-11624.6024793,0.00034546,2]
[382927330,1756773040909,-5951.0126421,0.00034546,2]
[382927331,1756773040918,-2000.0,0.00034594,5]
[382927332,1756773040928,-858.68035936,0.00034594,5]
[382927333,1756773040938,-500.0,0.00034623,2]
[382927334,1756773040947,-500.0,0.00034623,5]
[382927335,1756773040957,-500.0,0.00034623,5]
[382927336,1756773040966,-500.0,0.00034623,5]
[382927337,1756773040976,-500.0,0.00034623,5]
[382927338,1756773040985,-500.0,0.00034623,5]
[382927339,1756773040994,-500.0,0.00034623,5]
[382927340,1756773041004,-500.0,0.00034623,5]
[382927341,1756773041014,-500.0,0.00034623,5]
[382927342,1756773041023,-500.0,0.00034623,5]
[382927343,1756773041033,-161.6946913,0.00034623,5]
[382927344,1756773041043,-500.0,0.00034623,5]
[382927345,1756773041053,-500.0,0.00034623,5]
[382927346,1756773041063,-846.74174822,0.00034752,2]
[382927347,1756773041073,-150.0,0.00034768,7]
[382927348,1756773041083,-300.0,0.000349,12]
[382927349,1756773041093,-846.74174822,0.00034935,2]
[382927350,1756773041103,-160.26,0.00035,14]
[382927351,1756773041113,-1425.0,0.00035011,2]
[382927352,1756773041123,-8063.65936998,0.0003506,2]
[382927353,1756773041132,-289.0,0.0003506,2]
[382927354,1756773041141,-527.0,0.00035096,2]
[382927355,1756773041150,-562.20269621,0.00035106,2]
[382927356,1756773041159,-2034.0,0.00035118,2]
[382927357,1756773041169,-924.0,0.00035118,2]
[382927358,1756773041178,-21131.0,0.00035118,2]
[382927359,1756773041187,-2500.0,0.00035142,5]
[382927360,1756773041196,-173.63,0.00035143,2]
[382927361,1756773041205,-1000.0,0.00035165,2]
[382927362,1756773041214,-448.8022395,0.00035171,2]
[382927363,1756773041223,-998.33927412,0.00035171,5]
[382927364,1756773041233,-1000.0,0.00035171,5]
[382927365,1756773041242,-505.73377682,0.00035171,5]
[382927366,1756773041251,-1000.0,0.00035171,5]
[382927367,1756773041261,-1000.0,0.00035171,5]
[382927368,1756773041270,-724.87815254,0.00035171,5]
[382927369,1756773041279,-1000.0,0.00035171,5]
[382927370,1756773041288,-1000.0,0.00035171,5]
[382927371,1756773041297,-1000.0,0.00035171,5]
[382927372,1756773041306,-1000.0,0.00035171,5]
[382927373,1756773041316,-1000.0,0.00035171,5]
[382927374,1756773041325,-150.0,0.00035175,7]
[382927375,1756773041335,-709.0,0.000353,2]
[382927376,1756773041344,-150.0,0.00035311,7]
[382927377,1756773041354,-1474.0,0.00035322,5]
[382927378,1756773041363,-846.74174826,0.00035322,2]
[382927379,1756773041373,-1076.33284156,0.00035358,2]
[382927380,1756773041382,-857.04,0.0003543,2]
[382927381,1756773041392,-580.0,0.00035447,2]
[382927382,1756773041402,-150.99,0.00035455,30]
[382927383,1756773041411,-1181.28,0.00035455,90]
[382927384,1756773041421,-150.99,0.00035455,2]
[382927385,1756773041430,-500.0,0.00035492,2]
[382927386,1756773041439,-150.0,0.00035492,2]
[382927387,1756773041448,-779.89477607,0.00035549,2]
[382927388,1756773041458,-2500.0,0.0003559,2]
[382927389,1756773041467,-8063.65936998,0.00035592,2]
[382927390,1756773041476,-2552.41387082,0.00035599,9]
[382927391,1756773041486,-2000.0,0.000356,2]
[382927392,1756773041495,-957.0,0.00035603,7]
[382927393,1756773041504,-8063.65936998,0.00035669,2]
[382927394,1756773041515,-8063.65936998,0.00035669,2]
[382927395,1756773041525,-5062.29491653,0.00035669,2]
[382927396,1756773041534,-219.733,0.00035673,5]
[382927397,1756773041553,-151.0,0.00035676,14]
[382927398,1756773041562,-5062.29491653,0.00035679,2]
[382927399,1756773041571,-24190.9781099,0.0003568,2]
[382927400,1756773041582,-15186.8847496,0.0003568,2]
[382927401,1756773041591,-5062.29491653,0.00035689,2]
[382927402,1756773041600,-1000.0,0.0003569,2]
[382927403,1756773041610,-34633.5392,0.0003569,2]
[382927404,1756773041621,-3000.0,0.0003569,5]
[382927405,1756773041631,-5000.0,0.00035699,2]
[382927406,1756773041641,-1500.0,0.00035719,5]
[382927407,1756773041651,-1500.0,0.00035719,5]
[382927408,1756773041660,-1611.78589965,0.00035719,5]
[382927409,1756773041675,-1500.0,0.00035719,5]
[382927410,1756773041684,-1500.0,0.00035719,5]
[382927411,1756773041694,-507.75448963,0.00035719,5]
[382927412,1756773041704,-809.89964157,0.00035719,5]
[382927413,1756773041713,-1500.0,0.00035719,5]
[382927414,1756773041725,-500.0,0.00035746,2]
[382927415,1756773041736,-8063.65936998,0.0003576,2]
[382927416,1756773041746,-5062.29491653,0.0003576,2]
[382927417,1756773041755,-214.0,0.0003576,30]
[382927418,1756773041768,-289.0,0.0003576,2]
[382927419,1756773041782,-8063.65936998,0.0003577,2]
[382927420,1756773041791,-5062.29491653,0.0003577,2]
[382927421,1756773041801,-500.0,0.00035773,5]
[382927422,1756773041810,-48381.9562199,0.0003578,2]
[382927423,1756773041820,-50622.9491653,0.0003578,2]
[382927424,1756773041829,-8063.65936998,0.0003579,2]
[382927425,1756773041840,-91121.3084975,0.0003579,2]
[382927426,1756773041850,-342.00864,0.0003579,30]
[382927427,1756773041859,-342.00864,0.0003579,30]
[382927428,1756773041869,-342.00864,0.0003579,30]
[382927429,1756773041879,-151.0,0.0003579,30]
[382927430,1756773041889,-342.00864,0.0003579,30]
[382927431,1756773041899,-177.593187,0.0003579,30]
[382927432,1756773041909,-151.0,0.0003579,30]
[382927433,1756773041919,-151.0,0.0003579,30]
[382927434,1756773041929,-151.0,0.0003579,30]
[382927435,1756773041938,-151.0,0.0003579,30]
[382927436,1756773041948,-151.0,0.0003579,30]
[382927437,1756773041958,-151.0,0.0003579,30]
[382927438,1756773041967,-151.0,0.0003579,30]
[382927439,1756773041977,-151.0,0.0003579,30]
[382927440,1756773041986,-151.0,0.0003579,30]
[382927441,1756773041995,-158.587547,0.0003579,30]
[382927442,1756773042005,-151.0,0.0003579,30]
[382927443,1756773042015,-151.0,0.0003579,30]
[382927444,1756773042025,-685.312989,0.0003579,30]
[382927445,1756773042035,-685.312989,0.0003579,30]
[382927446,1756773042045,-151.0,0.0003579,30]
[382927447,1756773042055,-154.92,0.0003579,2]
[382927448,1756773042064,-685.312989,0.0003579,30]